fUSD/lending_fUSD_20260611
["ID","MTS","AMOUNT","RATE_DAILY","PERIOD"]
[424766917,1781141446000,-500.0,0.00014999,2]
[424766918,1781141446000,-500.0,0.00014999,2]
[424766920,1781141446000,-537.14703498,0.00014999,2]
[424766919,1781141446000,-500.0,0.00014999,2]
[424766921,1781141446000,-500.0,0.00014999,2]
[424766914,1781141446000,-500.0,0.00014999,2]
[424766924,1781141446000,-500.0,0.00014999,2]
[424766935,1781141446000,-692.93,0.00014999,2]
[424766926,1781141446000,-500.0,0.00014999,2]
[424766944,1781141446000,-649.09,0.00014999,2]
[424766927,1781141446000,-500.0,0.00014999,2]
[424766930,1781141446000,-692.93,0.00014999,2]
[424766928,1781141446000,-500.0,0.00014999,2]
[424766932,1781141446000,-692.93,0.00014999,2]
[424766931,1781141446000,-692.93,0.00014999,2]
[424766934,1781141446000,-692.93,0.00014999,2]
[424766929,1781141446000,-692.93,0.00014999,2]
[424766925,1781141446000,-500.0,0.00014999,2]
[424766933,1781141446000,-692.93,0.00014999,2]
[424766996,1781141447000,-500.0,0.00014999,2]
[424766998,1781141447000,-500.0,0.00014999,2]
[424766997,1781141447000,-500.0,0.00014999,2]
[424766999,1781141447000,-500.0,0.00014999,2]
[424767004,1781141447000,-500.0,0.00014999,2]
[424767002,1781141447000,-500.0,0.00014999,2]
[424767003,1781141447000,-538.58,0.00014999,2]
[424766995,1781141447000,-500.0,0.00014999,2]
[424767001,1781141447000,-500.0,0.00014999,2]
[424767000,1781141447000,-500.0,0.00014999,2]
[424767008,1781141447000,-500.0,0.00014999,2]
[424767005,1781141447000,-538.58,0.00014999,2]
[424767007,1781141447000,-538.58,0.00014999,2]
[424767009,1781141447000,-538.58,0.00014999,2]
[424767013,1781141447000,-538.58,0.00014999,2]
[424767010,1781141447000,-500.0,0.00014999,2]
[424767011,1781141447000,-538.58,0.00014999,2]
[424767012,1781141447000,-500.0,0.00014999,2]
[424767015,1781141447000,-500.0,0.00014999,2]
[424766994,1781141447000,-500.0,0.00014999,2]
[424767016,1781141447000,-538.58,0.00014999,2]
[424767006,1781141447000,-500.0,0.00014999,2]
[424766990,1781141447000,-554.97191774,0.00014999,2]
[424766982,1781141447000,-554.77,0.00014999,2]
[424766992,1781141447000,-500.0,0.00014999,2]
[424767014,1781141447000,-500.0,0.00014999,2]
[424766971,1781141447000,-552.44,0.00014999,2]
[424766972,1781141447000,-552.44,0.00014999,2]
[424766973,1781141447000,-552.44,0.00014999,2]
[424766974,1781141447000,-552.60388163,0.00014999,2]
[424766970,1781141447000,-552.44,0.00014999,2]
[424766969,1781141447000,-552.44,0.00014999,2]
[424766968,1781141447000,-552.44,0.00014999,2]
[424766975,1781141447000,-554.77,0.00014999,2]
[424766977,1781141447000,-554.77,0.00014999,2]
[424766979,1781141447000,-554.77,0.00014999,2]
[424766978,1781141447000,-554.77,0.00014999,2]
[424766980,1781141447000,-554.77,0.00014999,2]
[424766983,1781141447000,-554.77,0.00014999,2]
[424766976,1781141447000,-554.77,0.00014999,2]
[424766981,1781141447000,-554.77,0.00014999,2]
[424766984,1781141447000,-554.77,0.00014999,2]
[424766985,1781141447000,-554.77,0.00014999,2]
[424766986,1781141447000,-554.77,0.00014999,2]
[424766987,1781141447000,-554.77,0.00014999,2]
[424766988,1781141447000,-554.77,0.00014999,2]
[424766989,1781141447000,-554.77,0.00014999,2]
[424766991,1781141447000,-500.0,0.00014999,2]
[424766993,1781141447000,-500.0,0.00014999,2]
[424767017,1781141447000,-500.0,0.00014999,2]
[424767026,1781141447000,-500.0,0.00014999,2]
[424767022,1781141447000,-538.58,0.00014999,2]
[424767047,1781141447000,-500.0,0.00014999,2]
[424767055,1781141447000,-500.0,0.00014999,2]
[424767046,1781141447000,-500.0,0.00014999,2]
[424767048,1781141447000,-500.0,0.00014999,2]
[424767052,1781141447000,-500.0,0.00014999,2]
[424767051,1781141447000,-500.0,0.00014999,2]
[424767054,1781141447000,-500.0,0.00014999,2]
[424767053,1781141447000,-500.0,0.00014999,2]
[424767056,1781141447000,-500.0,0.00014999,2]
[424767058,1781141447000,-500.0,0.00014999,2]
[424767050,1781141447000,-500.0,0.00014999,2]
[424767057,1781141447000,-500.0,0.00014999,2]
[424767065,1781141447000,-500.0,0.00014999,2]
[424767063,1781141447000,-500.0,0.00014999,2]
[424767060,1781141447000,-500.0,0.00014999,2]
[424767019,1781141447000,-500.0,0.00014999,2]
[424767064,1781141447000,-500.0,0.00014999,2]
[424767061,1781141447000,-500.0,0.00014999,2]
[424767066,1781141447000,-500.0,0.00014999,2]
[424767069,1781141447000,-500.0,0.00014999,2]
[424767067,1781141447000,-500.0,0.00014999,2]
[424767068,1781141447000,-500.0,0.00014999,2]
[424767059,1781141447000,-500.0,0.00014999,2]
[424767049,1781141447000,-500.0,0.00014999,2]
[424767062,1781141447000,-500.0,0.00014999,2]
[424767045,1781141447000,-500.0,0.00014999,2]
[424767044,1781141447000,-500.0,0.00014999,2]
[424767020,1781141447000,-538.58,0.00014999,2]
[424767018,1781141447000,-538.58,0.00014999,2]
[424767021,1781141447000,-500.0,0.00014999,2]
[424767025,1781141447000,-500.0,0.00014999,2]
[424767024,1781141447000,-538.58,0.00014999,2]
[424767027,1781141447000,-538.58,0.00014999,2]
[424767029,1781141447000,-500.0,0.00014999,2]
[424767032,1781141447000,-500.0,0.00014999,2]
[424767028,1781141447000,-538.58,0.00014999,2]
[424767033,1781141447000,-538.58,0.00014999,2]
[424767023,1781141447000,-500.0,0.00014999,2]
[424767030,1781141447000,-538.58,0.00014999,2]
[424767031,1781141447000,-500.0,0.00014999,2]
[424767043,1781141447000,-500.0,0.00014999,2]
[424767040,1781141447000,-500.0,0.00014999,2]
[424767037,1781141447000,-500.0,0.00014999,2]
[424767034,1781141447000,-538.72930223,0.00014999,2]
[424767039,1781141447000,-500.0,0.00014999,2]
[424767042,1781141447000,-500.0,0.00014999,2]
[424767041,1781141447000,-500.0,0.00014999,2]
[424767036,1781141447000,-500.0,0.00014999,2]
[424767035,1781141447000,-500.0,0.00014999,2]
[424767038,1781141447000,-500.0,0.00014999,2]
[424767089,1781141448000,-500.0,0.00014999,2]
[424767092,1781141448000,-887.49,0.00014999,2]
[424767091,1781141448000,-887.49,0.00014999,2]
[424767090,1781141448000,-500.0,0.00014999,2]
[424767094,1781141448000,-887.49,0.00014999,2]
[424767093,1781141448000,-887.49,0.00014999,2]
[424767096,1781141448000,-887.49,0.00014999,2]
[424767102,1781141448000,-887.61275029,0.00014999,2]
[424767097,1781141448000,-887.49,0.00014999,2]
[424767098,1781141448000,-887.49,0.00014999,2]
[424767099,1781141448000,-887.49,0.00014999,2]
[424767105,1781141448000,-2508.65,0.00014999,2]
[424767100,1781141448000,-887.49,0.00014999,2]
[424767101,1781141448000,-887.49,0.00014999,2]
[424767085,1781141448000,-500.0,0.00014999,2]
[424767095,1781141448000,-887.49,0.00014999,2]
[424767084,1781141448000,-500.0,0.00014999,2]
[424767072,1781141448000,-500.0,0.00014999,2]
[424767086,1781141448000,-500.0,0.00014999,2]
[424767107,1781141448000,-2508.65,0.00014999,2]
[424767070,1781141448000,-500.0,0.00014999,2]
[424767075,1781141448000,-500.0,0.00014999,2]
[424767073,1781141448000,-500.0,0.00014999,2]
[424767071,1781141448000,-500.0,0.00014999,2]
[424767076,1781141448000,-500.0,0.00014999,2]
[424767074,1781141448000,-500.0,0.00014999,2]
[424767078,1781141448000,-500.0,0.00014999,2]
[424767087,1781141448000,-500.0,0.00014999,2]
[424767079,1781141448000,-500.0,0.00014999,2]
[424767080,1781141448000,-500.0,0.00014999,2]
[424767077,1781141448000,-500.0,0.00014999,2]
[424767088,1781141448000,-500.0,0.00014999,2]
[424767081,1781141448000,-500.0,0.00014999,2]
[424767082,1781141448000,-500.0,0.00014999,2]
[424767083,1781141448000,-500.0,0.00014999,2]
[424767106,1781141448000,-2508.65,0.00014999,2]
[424767103,1781141448000,-2508.65,0.00014999,2]
[424767108,1781141448000,-2508.65,0.00014999,2]
[424767129,1781141448000,-2429.12,0.00014999,2]
[424767128,1781141448000,-2429.12,0.00014999,2]
[424767130,1781141448000,-2429.16142352,0.00014999,2]
[424767131,1781141448000,-300.0,0.00014999,2]
[424767133,1781141448000,-300.0,0.00014999,2]
[424767132,1781141448000,-300.0,0.00014999,2]
[424767135,1781141448000,-666.0,0.00014999,2]
[424767134,1781141448000,-300.0,0.00014999,2]
[424767136,1781141448000,-300.0,0.00014999,2]
[424767139,1781141448000,-300.0,0.00014999,2]
[424767137,1781141448000,-300.0,0.00014999,2]
[424767140,1781141448000,-300.0,0.00014999,2]
[424767138,1781141448000,-666.0,0.00014999,2]
[424767143,1781141448000,-2560863.55536551,0.00015,2]
[424767142,1781141448000,-9363242.46971316,0.00015,2]
[424767123,1781141448000,-2429.12,0.00014999,2]
[424767121,1781141448000,-2429.12,0.00014999,2]
[424767141,1781141448000,-666.0,0.00014999,2]
[424767124,1781141448000,-2429.12,0.00014999,2]
[424767125,1781141448000,-2429.12,0.00014999,2]
[424767110,1781141448000,-2508.65,0.00014999,2]
[424767119,1781141448000,-2429.12,0.00014999,2]
[424767112,1781141448000,-2508.65,0.00014999,2]
[424767109,1781141448000,-2508.65,0.00014999,2]
[424767104,1781141448000,-2508.65,0.00014999,2]
[424767114,1781141448000,-2508.85,0.00014999,2]
[424767118,1781141448000,-419.77024242,0.00014999,2]
[424767116,1781141448000,-500.0,0.00014999,2]
[424767117,1781141448000,-500.0,0.00014999,2]
[424767113,1781141448000,-2508.65,0.00014999,2]
[424767115,1781141448000,-500.0,0.00014999,2]
[424767120,1781141448000,-2429.12,0.00014999,2]
[424767122,1781141448000,-2429.12,0.00014999,2]
[424767127,1781141448000,-2429.12,0.00014999,2]
[424767126,1781141448000,-2429.12,0.00014999,2]
[424767111,1781141448000,-2508.65,0.00014999,2]
[424767151,1781141450000,-1412.0,0.00014726,2]
[424767144,1781141450000,-31044.32686368,0.00015,2]
[424767145,1781141450000,-270.40341536,0.00014726,2]
[424767146,1781141450000,-2497.73705181,0.00012312,2]
[424767148,1781141450000,-365.05088064,0.00014726,2]
[424767149,1781141450000,-269.53870786,0.00014726,2]
[424767147,1781141450000,-939.80616175,0.00012312,2]
[424767150,1781141450000,-507.00699614,0.00014726,2]
[424767158,1781141450000,-925.0,0.00015,2]
[424767154,1781141450000,-774.587,0.00014726,2]
[424767153,1781141450000,-1412.0,0.00014726,2]
[424767155,1781141450000,-60.8333716,0.00015,2]
[424767157,1781141450000,-2644.62968745,0.00015,2]
[424767156,1781141450000,-31293.05607877,0.00015,2]
[424767159,1781141450000,-431.885,0.00015,2]
[424767161,1781141450000,-285.84883513,0.00015,2]
[424767160,1781141450000,-500.0,0.00015,2]
[424767152,1781141450000,-1412.0,0.00014726,2]
[424767172,1781142333000,1071.88,0.00016438,60]
[424767182,1781142632000,-158.68,0.00010624,2]
[424767179,1781142632000,-688.13647899,0.00010159,2]
[424767180,1781142632000,-183.64669534,0.00010524,2]
[424767181,1781142632000,-2943.19,0.00010584,2]
[424767186,1781142632000,-1000.0,0.00010823,2]
[424767185,1781142632000,-1646.28,0.00010688,2]
[424767184,1781142632000,-2434.22,0.00010684,2]
[424767187,1781142632000,-163.65,0.00010823,2]
[424767188,1781142632000,-2943.19,0.00010849,2]
[424767189,1781142632000,-5045.54,0.00010857,2]
[424767183,1781142632000,-2001.340657,0.00010635,2]
[424767240,1781142633000,-473.79004516,0.0001224,2]
[424767223,1781142633000,-500.0,0.00011855,3]
[424767226,1781142633000,-500.0,0.00011855,6]
[424767228,1781142633000,-500.0,0.00011855,8]
[424767231,1781142633000,-700.0,0.000119,4]
[424767221,1781142633000,-400.0,0.000118,4]
[424767222,1781142633000,-500.0,0.00011855,2]
[424767227,1781142633000,-500.0,0.00011855,7]
[424767220,1781142633000,-2000.0,0.00011756,2]
[424767215,1781142633000,-158.68,0.00011687,2]
[424767224,1781142633000,-500.0,0.00011855,4]
[424767225,1781142633000,-500.0,0.00011855,5]
[424767230,1781142633000,-8804.5760599,0.00011866,2]
[424767216,1781142633000,-200.0,0.000117,4]
[424767233,1781142633000,-500.0,0.0001224,2]
[424767243,1781142633000,-500.0,0.00012467,9]
[424767244,1781142633000,-255.0,0.00012548,2]
[424767232,1781142633000,-166.66,0.00011952,2]
[424767242,1781142633000,-266.25,0.00012329,2]
[424767236,1781142633000,-500.0,0.0001224,2]
[424767234,1781142633000,-500.0,0.0001224,2]
[424767239,1781142633000,-26.20995484,0.0001224,2]
[424767238,1781142633000,-157.53560962,0.0001224,2]
[424767237,1781142633000,-502.99547049,0.0001224,2]
[424767229,1781142633000,-503.27053058,0.00011861,2]
[424767219,1781142633000,-33277.9515,0.00011756,2]
[424767218,1781142633000,-166.66,0.00011754,2]
[424767217,1781142633000,-250.0,0.00011754,2]
[424767191,1781142633000,-275.92,0.00011035,2]
[424767195,1781142633000,-2466.71,0.00011288,2]
[424767190,1781142633000,-166.66,0.00010959,2]
[424767193,1781142633000,-663.44745054,0.00011144,2]
[424767192,1781142633000,-2943.19,0.00011113,2]
[424767194,1781142633000,-166.66,0.00011158,2]
[424767196,1781142633000,-1217.08,0.00011304,2]
[424767197,1781142633000,-1377.65,0.00011334,2]
[424767198,1781142633000,-166.66,0.00011356,2]
[424767199,1781142633000,-2943.19,0.00011378,2]
[424767200,1781142633000,-150.0,0.00011406,2]
[424767201,1781142633000,-1577.43,0.00011445,2]
[424767208,1781142633000,-500.0,0.00011563,2]
[424767209,1781142633000,-500.0,0.00011563,2]
[424767202,1781142633000,-150.0,0.0001148,2]
[424767207,1781142633000,-500.0,0.00011563,2]
[424767203,1781142633000,-8804.57605992,0.00011487,2]
[424767206,1781142633000,-163.561,0.00011563,2]
[424767205,1781142633000,-2864.375,0.00011563,2]
[424767204,1781142633000,-166.66,0.00011555,2]
[424767211,1781142633000,-500.0,0.00011563,2]
[424767210,1781142633000,-500.0,0.00011563,2]
[424767213,1781142633000,-215.92376884,0.00011592,2]
[424767214,1781142633000,-2943.19,0.00011643,2]
[424767241,1781142633000,-8804.5760599,0.00012245,2]
[424767212,1781142633000,-500.0,0.00011563,2]
[424767248,1781142633000,-152.0,0.00012647,7]
[424767299,1781142633000,-1156.14534876,0.00013699,2]
[424767277,1781142633000,-500.0,0.00013698,2]
[424767269,1781142633000,-312.5039285,0.00013539,2]
[424767287,1781142633000,-500.0,0.00013698,2]
[424767279,1781142633000,-500.0,0.00013698,2]
[424767285,1781142633000,-500.0,0.00013698,2]
[424767284,1781142633000,-500.0,0.00013698,2]
[424767286,1781142633000,-500.0,0.00013698,2]
[424767282,1781142633000,-500.0,0.00013698,2]
[424767281,1781142633000,-500.0,0.00013698,2]
[424767280,1781142633000,-500.0,0.00013698,2]
[424767274,1781142633000,-500.0,0.00013698,2]
[424767283,1781142633000,-500.0,0.00013698,2]
[424767290,1781142633000,-4140.17,0.00013699,2]
[424767291,1781142633000,-7347.79,0.00013699,2]
[424767289,1781142633000,-2500.0,0.00013699,2]
[424767294,1781142633000,-1156.14534876,0.00013699,2]
[424767293,1781142633000,-9999.99,0.00013699,2]
[424767292,1781142633000,-2865.08,0.00013699,2]
[424767295,1781142633000,-1156.14534876,0.00013699,2]
[424767297,1781142633000,-1156.14534876,0.00013699,2]
[424767296,1781142633000,-1156.14534876,0.00013699,2]
[424767298,1781142633000,-1156.14534876,0.00013699,2]
[424767245,1781142633000,-152.0,0.000126,7]
[424767288,1781142633000,-200.0,0.00013699,2]
[424767275,1781142633000,-500.0,0.00013698,2]
[424767278,1781142633000,-504.05769263,0.00013698,2]
[424767270,1781142633000,-312.5039285,0.00013622,2]
[424767247,1781142633000,-8804.5760599,0.00012625,2]
[424767254,1781142633000,-312.5039285,0.00012795,2]
[424767256,1781142633000,-312.5039285,0.00012982,2]
[424767249,1781142633000,-152.0,0.00012653,7]
[424767251,1781142633000,-152.0,0.00012686,7]
[424767246,1781142633000,-152.0,0.00012619,7]
[424767252,1781142633000,-158.68,0.00012749,2]
[424767268,1781142633000,-153.6524393,0.00013488,2]
[424767253,1781142633000,-1377.65,0.00012751,2]
[424767255,1781142633000,-1577.43,0.00012876,2]
[424767258,1781142633000,-312.5039285,0.00013126,2]
[424767263,1781142633000,-250.0,0.00013423,2]
[424767257,1781142633000,-8804.5760599,0.00013004,2]
[424767250,1781142633000,-244.09064196,0.00012661,2]
[424767261,1781142633000,-312.5039285,0.00013354,2]
[424767259,1781142633000,-312.5039285,0.00013247,2]
[424767276,1781142633000,-500.0,0.00013698,2]
[424767273,1781142633000,-500.0,0.00013698,2]
[424767271,1781142633000,-500.0,0.00013697,11]
[424767267,1781142633000,-312.5039285,0.0001345,2]
[424767272,1781142633000,-504.25668169,0.00013698,2]
[424767264,1781142633000,-278.297067,0.00013425,2]
[424767262,1781142633000,-8804.5760599,0.00013383,2]
[424767260,1781142633000,-500.0,0.00013302,10]
[424767266,1781142633000,-213.25600483,0.00013447,7]
[424767265,1781142633000,-215.891059,0.00013425,2]
[424767309,1781142634000,-1156.14534876,0.00013699,2]
[424767303,1781142634000,-1156.14534876,0.00013699,2]
[424767310,1781142634000,-1156.14534876,0.00013699,2]
[424767307,1781142634000,-1156.14534876,0.00013699,2]
[424767302,1781142634000,-1156.14534876,0.00013699,2]
[424767300,1781142634000,-1156.14534876,0.00013699,2]
[424767304,1781142634000,-1156.14534876,0.00013699,2]
[424767305,1781142634000,-1156.14534876,0.00013699,2]
[424767301,1781142634000,-1156.14534876,0.00013699,2]
[424767308,1781142634000,-1156.14534876,0.00013699,2]
[424767311,1781142634000,-1156.14534876,0.00013699,2]
[424767306,1781142634000,-1156.14534876,0.00013699,2]
[424767315,1781142634000,-684.63610773,0.00013699,2]
[424767319,1781142634000,-477.6878,0.00013699,2]
[424767313,1781142634000,-1156.14534876,0.00013699,2]
[424767314,1781142634000,-1156.14534876,0.00013699,2]
[424767316,1781142634000,-300.15367832,0.00013699,2]
[424767317,1781142634000,-171.35556271,0.00013699,2]
[424767318,1781142634000,-202.70843729,0.00013699,2]
[424767312,1781142634000,-1156.14534876,0.00013699,2]
[424767320,1781142634000,-4674.97747436,0.00013699,2]
[424767321,1781142634000,-4674.97747436,0.00013699,2]
[424767322,1781142634000,-4674.97747436,0.00013699,2]
[424767323,1781142634000,-4674.97747436,0.00013699,2]
[424767324,1781142634000,-4674.97747436,0.00013699,2]
[424767325,1781142634000,-4674.97747436,0.00013699,2]
[424767326,1781142634000,-4674.97747436,0.00013699,2]
[424767327,1781142634000,-4674.97747436,0.00013699,2]
[424767328,1781142635000,-4674.97747436,0.00013699,2]
[424767333,1781142635000,-2974.82058961,0.00013699,2]
[424767331,1781142635000,-1602.40835834,0.00013699,2]
[424767329,1781142635000,-4674.97747436,0.00013699,2]
[424767330,1781142635000,-4674.97747436,0.00013699,2]
[424767332,1781142635000,-3072.56911602,0.00013699,2]
[424767356,1781142638000,-8804.5760599,0.00014142,2]
[424767368,1781142638000,-350.0,0.00014695,2]
[424767358,1781142638000,-500.0,0.000142,12]
[424767361,1781142638000,-500.0,0.00014504,2]
[424767359,1781142638000,-202.525537,0.0001423,2]
[424767362,1781142638000,-250.0,0.00014504,2]
[424767363,1781142638000,-2000.0,0.00014504,2]
[424767360,1781142638000,-1577.43,0.00014307,2]
[424767365,1781142638000,-527.81115247,0.00014598,2]
[424767366,1781142638000,-212.96862186,0.00014676,2]
[424767364,1781142638000,-8804.5760599,0.00014521,2]
[424767372,1781142638000,-354.88291927,0.00014799,2]
[424767369,1781142638000,-900.0,0.000147,5]
[424767375,1781142638000,-200.0,0.00014843,2]
[424767367,1781142638000,-297.82917261,0.00014676,2]
[424767376,1781142638000,-572.5215,0.0001485,2]
[424767357,1781142638000,-1377.65,0.00014168,2]
[424767348,1781142638000,-312.5039285,0.00013699,2]
[424767354,1781142638000,-250.0,0.00014,2]
[424767373,1781142638000,-1200.0,0.000148,5]
[424767339,1781142638000,-340.9710952,0.00012312,2]
[424767341,1781142638000,-30412.5578096,0.00013599,2]
[424767340,1781142638000,-340.9710952,0.00013025,2]
[424767342,1781142638000,-340.9710952,0.0001332,2]
[424767345,1781142638000,-667.96197469,0.00013599,2]
[424767343,1781142638000,-407.0289048,0.00013599,2]
[424767344,1781142638000,-2826.33,0.00013599,2]
[424767349,1781142638000,-433.0,0.00013719,2]
[424767346,1781142638000,-489.59559877,0.00013599,2]
[424767353,1781142638000,-158.68,0.00013812,2]
[424767347,1781142638000,-8440.19446059,0.00013599,2]
[424767351,1781142638000,-312.5039285,0.00013773,2]
[424767355,1781142638000,-500.0,0.0001414,2]
[424767350,1781142638000,-8804.5760599,0.00013762,2]
[424767352,1781142638000,-312.50392855,0.00013779,2]
[424767378,1781142638000,-572.52151,0.0001485,2]
[424767448,1781142638000,-188.34317633,0.00014889,2]
[424767389,1781142638000,-500.0,0.00014888,2]
[424767426,1781142638000,-500.0,0.00014889,2]
[424767434,1781142638000,-500.0,0.00014889,2]
[424767418,1781142638000,-500.0,0.00014889,2]
[424767422,1781142638000,-500.0,0.00014889,2]
[424767430,1781142638000,-500.0,0.00014889,2]
[424767428,1781142638000,-541.64642926,0.00014889,2]
[424767436,1781142638000,-500.0,0.00014889,2]
[424767391,1781142638000,-500.0,0.00014888,2]
[424767446,1781142638000,-500.0,0.00014889,2]
[424767450,1781142638000,-600.0,0.00014889,2]
[424767452,1781142638000,-300.0,0.00014889,2]
[424767454,1781142638000,-3142.0167102,0.00014889,2]
[424767442,1781142638000,-500.0,0.00014889,2]
[424767440,1781142638000,-500.0,0.00014889,2]
[424767443,1781142638000,-500.0,0.00014889,2]
[424767432,1781142638000,-500.0,0.00014889,2]
[424767424,1781142638000,-414.0187554,0.00014889,2]
[424767438,1781142638000,-500.0,0.00014889,2]
[424767420,1781142638000,-500.0,0.00014889,2]
[424767414,1781142638000,-500.0,0.00014889,2]
[424767384,1781142638000,-158.68,0.00014874,2]
[424767382,1781142638000,-500.0,0.00014864,13]
[424767380,1781142638000,-572.52151,0.0001486,2]
[424767370,1781142638000,-70071.4114,0.00014765,2]
[424767397,1781142638000,-500.0,0.00014888,2]
[424767393,1781142638000,-500.0,0.00014888,2]
[424767395,1781142638000,-500.0,0.00014888,2]
[424767386,1781142638000,-500.0,0.00014888,2]
[424767410,1781142638000,-500.0,0.00014889,2]
[424767401,1781142638000,-409.28734248,0.00014889,2]
[424767406,1781142638000,-571.36330331,0.00014889,2]
[424767412,1781142638000,-500.0,0.00014889,2]
[424767416,1781142638000,-500.0,0.00014889,2]
[424767404,1781142638000,-1279246.9117198,0.00014889,2]
[424767399,1781142638000,-9737.3017085,0.00014889,2]
[424767408,1781142638000,-500.0,0.00014889,2]
[424767477,1781142639000,-152.0,0.00014936,2]
[424767487,1781142639000,-1975.16,0.00014985,2]
[424767491,1781142639000,-151.0,0.00014997,2]
[424767493,1781142639000,-500.0,0.00014999,17]
[424767489,1781142639000,-736.0,0.00014993,2]
[424767483,1781142639000,-2000.0,0.00014985,2]
[424767485,1781142639000,-2000.0,0.00014985,2]
[424767481,1781142639000,-350.0,0.00014982,2]
[424767494,1781142639000,-500.0,0.00014999,18]
[424767459,1781142639000,-500.0,0.00014899,15]
[424767479,1781142639000,-2162.76864674,0.00014942,2]
[424767463,1781142639000,-10000.0,0.000149,2]
[424767475,1781142639000,-1500.0,0.0001493,2]
[424767466,1781142639000,-760.12,0.000149,2]
[424767464,1781142639000,-332.0,0.000149,5]
[424767473,1781142639000,-500.0,0.00014927,16]
[424767461,1781142639000,-421.0,0.000149,5]
[424767457,1781142639000,-500.0,0.00014899,14]
[424767468,1781142639000,-200.0,0.000149,5]
[424767497,1781142639000,-500.0,0.00014999,19]
[424767470,1781142639000,-8804.5760599,0.000149,2]
[424767507,1781142639000,-500.0,0.00014999,2]
[424767537,1781142639000,-1090341.04407227,0.00015,2]
[424767535,1781142639000,-666.0,0.00014999,2]
[424767533,1781142639000,-300.0,0.00014999,2]
[424767531,1781142639000,-300.0,0.00014999,2]
[424767529,1781142639000,-300.0,0.00014999,2]
[424767501,1781142639000,-570.68856785,0.00014999,21]
[424767518,1781142639000,-250.0,0.00014999,2]
[424767527,1781142639000,-687.07472415,0.00014999,2]
[424767516,1781142639000,-458.26217561,0.00014999,2]
[424767524,1781142639000,-300.0,0.00014999,2]
[424767522,1781142639000,-300.0,0.00014999,2]
[424767514,1781142639000,-500.0,0.00014999,2]
[424767512,1781142639000,-500.0,0.00014999,2]
[424767511,1781142639000,-500.0,0.00014999,2]
[424767509,1781142639000,-500.0,0.00014999,2]
[424767503,1781142639000,-500.0,0.00014999,2]
[424767505,1781142639000,-513.10422466,0.00014999,2]
[424767499,1781142639000,-500.0,0.00014999,20]
[424767508,1781142639000,-500.0,0.00014999,2]
[424767520,1781142639000,-300.0,0.00014999,2]
[424767634,1781142640000,-340.9710952,0.00013547,2]
[424767638,1781142640000,-734421.02134931,0.00015,2]
[424767637,1781142640000,-340.9710952,0.00013738,2]
[424767672,1781142641000,-1529.6096447,0.00013745,2]
[424767676,1781142642000,-766.87566022,0.00013745,2]
[424767684,1781142643000,-652.0,0.00015,2]
[424767680,1781142643000,-258910.21265288,0.00015,2]
[424767679,1781142643000,-40947.1834435,0.00013745,2]
[424767710,1781142646000,-391.3516446,0.0001389,2]
[424767712,1781142646000,-6761.62,0.0001389,2]
[424767711,1781142646000,-2966.71144329,0.0001389,2]
[424767775,1781143591000,-149.35553437,8.8e-05,2]
[424767774,1781143591000,-317.8307469,8e-05,2]
[424767778,1781143723000,-957.88925663,8.8e-05,2]
[424767777,1781143723000,-559.34228233,8.8e-05,2]
[424767807,1781143832000,-228.39999999,0.00012029,2]